bitfinex/quotes_ETHUSD_20240924
["timestamp","ask_amount","ask_price","bid_price","bid_amount"]
[1727209000562,1.5004816,2648.4,2648.3,0.0382329]
[1727209000749,2.56477849,2648.4,2648.3,0.0382329]
[1727209001273,1.77382892,2648.4,2648.3,0.0382329]
[1727209001483,0.70953203,2648.4,2648.3,0.0382329]
[1727209001807,1.06540112,2648.4,2648.3,0.0382329]
[1727209002100,0.71026741,2648.4,2648.3,3.8142329]
[1727209002381,0.79094957,2648.7,2648.6,3.77557]
[1727209002538,1.77574876,2648.7,2648.6,6.89540872]
[1727209002740,0.7102995,2648.7,2648.6,6.89540872]
[1727209003262,0.79094957,2648.9,2648.7,3.77533]
[1727209003469,1.85636848,2648.9,2648.7,3.77533]
[1727209003668,0.79094957,2649.0,2648.8,6.89512872]
[1727209003975,1.1835476,2649.1,2648.9,6.89498872]
[1727209003976,0.79094957,2649.1,2648.9,6.89498872]
[1727209004153,2.56689512,2649.0,2648.9,6.89498872]
[1727209005074,2.56689512,2649.0,2648.9,3.11983872]
[1727209005075,1.77594555,2649.0,2648.9,3.11983872]
[1727209005481,2.56726791,2649.0,2648.9,3.11983872]
[1727209006184,2.56726791,2649.0,2648.9,6.89498872]
[1727209006340,1.1835476,2649.1,2649.0,3.0]
[1727209006341,0.79132236,2649.1,2649.0,3.0]
[1727209006542,1.57806346,2649.4,2649.0,3.0]
[1727209006543,0.79132236,2649.2,2649.1,3.77486]
[1727209006864,0.71045651,2649.2,2649.1,6.89469872]
[1727209007075,0.71045651,2649.2,2649.1,10.70854051]
[1727209007248,1.97825146,2649.7,2649.1,10.70854051]
[1727209007249,0.79132236,2649.6,2649.5,0.7883]
[1727209007439,2.56719731,2649.6,2649.5,7.68242872]
[1727209007644,0.71034998,2649.6,2649.5,4.56259]
[1727209008106,2.56719393,2649.6,2649.5,4.56259]
[1727209008260,0.71034998,2649.6,2649.5,4.56259]
[1727209008557,0.71034998,2649.6,2649.5,0.7883]
[1727209008755,2.5670476,2649.6,2649.5,0.7883]
[1727209008949,2.56708326,2649.6,2649.5,0.7883]
[1727209009288,2.9593085,2649.6,2649.4,3.11983872]
[1727209009584,2.56677801,2649.5,2649.4,3.11983872]
[1727209009781,2.56677801,2649.5,2649.4,6.89426872]
[1727209009986,0.71034998,2649.5,2649.4,6.89426872]
[1727209010274,0.79101711,2649.6,2649.4,10.66861872]
[1727209010574,0.79101711,2649.6,2649.4,10.66852872]
[1727209010881,0.79101711,2649.6,2649.4,6.89416872]
[1727209011988,0.79101711,2649.6,2649.4,3.11983872]
[1727209012300,2.56602792,2649.5,2649.2,3.77469]
[1727209012509,2.5660024,2649.4,2649.3,3.11983872]
[1727209013482,1.50088595,2649.4,2649.3,3.11983872]
[1727209014015,2.56588266,2649.4,2649.3,3.11983872]
[1727209014224,0.71008217,2649.4,2649.3,3.11983872]
[1727209014425,1.50088595,2649.4,2649.3,3.11983872]
[1727209014617,2.56574524,2649.4,2649.3,3.11983872]
[1727209014924,0.71008217,2649.4,2649.3,3.11983872]
[1727209015126,0.71008217,2649.4,2649.3,6.89441872]
[1727209015295,1.1835476,2649.7,2649.3,6.89441872]
[1727209015296,0.79080378,2649.6,2649.3,6.89441872]
[1727209015498,1.50058827,2649.6,2649.5,3.11983872]
[1727209015793,1.50058827,2649.6,2649.5,6.89412872]
[1727209015794,0.70978449,2649.6,2649.5,6.89412872]
[1727209016212,0.79080378,2649.7,2649.5,6.89412872]
[1727209016394,1.50043835,2649.7,2649.5,6.89412872]
[1727209016596,0.79080378,2649.8,2649.6,3.77407]
[1727209016923,1.500415,2649.8,2649.7,3.11983872]
[1727209017219,2.56483347,2649.8,2649.7,3.11983872]
[1727209017630,2.56483347,2649.8,2649.7,6.89384872]
[1727209017807,0.70961474,2649.8,2649.7,6.89384872]
[1727209017982,0.79080378,2650.0,2649.7,6.89384872]
[1727209018336,1.50025052,2650.0,2649.7,6.89384872]
[1727209018804,1.50025052,2650.0,2649.9,6.89355872]
[1727209019009,2.56412943,2650.0,2649.9,6.89355872]
[1727209019217,0.70944674,2650.0,2649.9,6.89355872]
[1727209019644,0.79080378,2650.1,2650.0,3.77358]
[1727209019877,0.79080378,2650.5,2650.2,3.7733]
[1727209020015,1.49977785,2650.5,2650.2,3.11983872]
[1727209020211,1.49977785,2650.5,2650.4,3.11983872]
[1727209020674,2.56316567,2650.5,2650.4,3.11983872]
[1727209020952,2.56316567,2650.5,2650.2,3.11983872]
[1727209021155,1.1835476,2650.6,2650.4,3.11983872]
[1727209021156,0.79080378,2650.6,2650.4,3.11983872]
[1727209021463,0.79080378,2650.8,2650.6,3.77273]
[1727209021613,0.79080378,2650.9,2650.6,6.89256872]
[1727209021969,4.9555676,2651.1,2650.6,6.89256872]
[1727209021970,0.79080378,2651.0,2650.8,3.11983872]
[1727209022169,1.24589049,2651.0,2650.8,3.11983872]
[1727209022458,4.22726671,2651.0,2650.8,3.11983872]
[1727209022667,5.01807049,2651.0,2650.8,3.11983872]
[1727209022869,4.22726671,2651.0,2650.8,3.11983872]
[1727209023178,5.01807049,2651.0,2650.8,3.11983872]
[1727209023365,4.9554776,2651.2,2650.8,3.11983872]
[1727209023366,0.79080378,2651.1,2650.8,3.11983872]
[1727209023570,4.9554776,2651.2,2650.8,3.11983872]
[1727209023571,0.79080378,2651.2,2651.0,3.11983872]
[1727209023893,6.57927428,2651.5,2651.0,3.11983872]
[1727209024039,7.42749262,2651.4,2651.2,3.11983872]
[1727209024228,1.09670644,2651.4,2651.2,3.11983872]
[1727209024633,3.77166,2651.4,2651.0,3.11983872]
[1727209025368,3.77223,2651.0,2650.6,3.11983872]
[1727209026250,3.77245,2650.8,2650.6,3.11983872]
[1727209026457,3.77245,2650.8,2650.5,3.0]
[1727209026825,0.8333,2651.0,2650.5,3.0]
[1727209027079,0.8333,2651.0,2650.2,3.91773872]
[1727209027080,3.77287,2650.5,2650.2,3.91773872]
[1727209027286,3.77287,2650.5,2650.3,3.0]
[1727209027699,3.77287,2650.5,2650.4,3.11983872]
[1727209028386,3.7728,2650.6,2650.4,3.11983872]
[1727209029215,3.77287,2650.5,2650.4,3.11983872]
[1727209031621,3.77287,2650.5,2650.0,3.7979]
[1727209031622,3.77306,2650.4,2650.2,3.11983872]
[1727209032813,3.77306,2650.4,2650.1,3.0]
[1727209033085,0.8333,2650.5,2649.9,0.5]
[1727209033296,3.77338,2650.2,2649.9,0.5]
[1727209033494,3.77316,2650.3,2650.0,3.11983872]
[1727209033691,4.60627,2650.5,2650.2,3.11983872]
[1727209033929,4.60627,2650.5,2650.4,3.11983872]
[1727209034352,0.8333,2650.5,2650.4,3.11983872]
[1727209034689,3.77279,2650.6,2650.4,3.11983872]
[1727209034905,3.7726,2650.7,2650.4,3.11983872]
[1727209035319,0.8333,2650.9,2650.6,3.11983872]
[1727209035493,3.77222,2651.0,2650.8,3.11983872]
[1727209036107,3.7723,2650.9,2650.8,3.11983872]
[1727209036301,3.7723,2650.9,2650.6,3.11983872]
[1727209037210,0.8333,2651.1,2650.6,3.11983872]
[1727209037438,3.77202,2651.1,2651.0,3.11983872]
[1727209037601,4.232552,2651.1,2651.0,3.11983872]
[1727209038620,0.460532,2651.1,2651.0,3.11983872]
[1727209038841,3.7719,2651.2,2651.0,3.11983872]
[1727209039048,2.7719,2651.2,2651.0,3.11983872]
[1727209039222,3.60513,2651.3,2651.0,3.11983872]
[1727209039909,3.77204,2651.1,2650.8,3.11983872]
[1727209042024,3.77225,2651.0,2650.6,3.11983872]
[1727209042505,3.77225,2651.0,2650.6,6.89253872]
[1727209042711,3.77225,2651.0,2650.6,3.11983872]
[1727209043951,3.77232,2650.9,2650.6,3.11983872]
[1727209046764,3.77218,2651.0,2650.6,6.89255872]
[1727209048166,3.77218,2651.0,2650.6,3.11983872]
[1727209048365,7.54441,2651.0,2650.6,3.11983872]
[1727209048669,3.77218,2651.0,2650.6,3.11983872]
[1727209048964,3.77232,2650.9,2650.6,3.11983872]
[1727209051163,4.56312378,2650.9,2650.6,3.11983872]
[1727209051984,3.77232,2650.9,2650.6,3.11983872]
[1727209052166,0.70973175,2650.8,2650.6,3.11983872]
[1727209054382,2.56547696,2650.8,2650.6,3.11983872]
[1727209054543,0.79080378,2650.8,2650.6,3.11983872]
[1727209054876,4.56312378,2650.9,2650.6,3.11983872]
[1727209055180,1.77505515,2650.8,2650.6,3.11983872]
[1727209055478,4.56312378,2650.9,2650.6,3.11983872]
[1727209055654,1.77519923,2650.8,2650.6,3.11983872]
[1727209056179,2.56600301,2650.8,2650.6,3.11983872]
[1727209056345,4.56312378,2650.9,2650.6,3.11983872]
[1727209057079,0.71015678,2650.8,2650.6,3.11983872]
[1727209057283,2.56623156,2650.8,2650.6,3.11983872]
[1727209057588,0.79080378,2650.8,2650.6,3.11983872]
[1727209057874,2.56658078,2650.8,2650.6,3.11983872]
[1727209058060,0.79080378,2650.8,2650.6,3.11983872]
[1727209058263,0.71031145,2650.7,2650.6,3.11983872]
[1727209058643,2.56690556,2650.7,2650.6,3.11983872]
[1727209059143,1.77610178,2650.7,2650.6,3.11983872]
[1727209059369,2.56640959,2650.7,2650.6,3.11983872]
[1727209059647,1.77610178,2650.7,2650.6,3.11983872]
[1727209059977,2.0125476,2650.8,2650.6,3.11983872]
[1727209060194,2.96067183,2650.7,2650.6,3.11983872]
[1727209061079,2.56780887,2650.7,2650.6,3.94683872]
[1727209061280,2.56812936,2650.7,2650.6,3.94683872]
[1727209061943,2.96067183,2650.7,2650.6,3.94683872]
[1727209062551,2.96067183,2650.7,2650.6,3.11983872]
[1727209062782,4.77868907,2650.7,2650.6,3.11983872]
[1727209063090,3.35518769,2650.7,2650.6,3.11983872]
[1727209063245,3.77275,2650.6,2650.1,0.827]
[1727209063446,3.77275,2650.6,2650.2,3.0]
[1727209063447,1.18767342,2650.4,2650.2,3.0]
[1727209063659,2.96479765,2650.3,2650.2,3.0]
[1727209064370,3.20249117,2650.3,2650.2,3.0]
[1727209064542,2.96528397,2650.3,2650.2,3.0]
[1727209064742,2.97053444,2650.3,2650.2,6.11983872]
[1727209065160,4.79182382,2650.3,2650.2,6.11983872]
[1727209065902,3.20825925,2650.3,2650.2,6.11983872]
[1727209066573,2.97084938,2650.3,2650.2,10.96516459]
[1727209066889,1.7823747,2650.3,2650.2,10.96516459]
[1727209067189,2.97084938,2650.3,2650.2,10.96516459]
[1727209068447,1.7823747,2650.3,2650.2,10.96516459]
[1727209068691,2.97084938,2650.3,2650.2,10.96516459]
[1727209069275,2.97122603,2650.3,2650.2,7.19186459]
[1727209069595,2.97122603,2650.3,2650.2,10.96516459]
[1727209073955,2.97131183,2650.3,2650.2,10.96516459]
[1727209074774,1.78283715,2650.3,2650.2,11.27548822]
[1727209074969,2.97131183,2650.3,2650.2,6.11983872]
[1727209075169,4.79275191,2650.3,2650.2,6.11983872]
[1727209075371,3.36640172,2650.3,2650.2,6.11983872]
[1727209075584,3.20918734,2650.3,2650.2,6.11983872]
[1727209075800,2.97128417,2650.3,2650.2,6.11983872]
[1727209076005,4.79265342,2650.3,2650.0,3.0]
[1727209076303,0.79233302,2650.1,2650.0,3.0]
[1727209076465,0.79233302,2650.1,2649.9,1.0]
[1727209076466,2.97133668,2650.1,2649.9,1.0]
[1727209076669,3.20921512,2650.0,2649.9,1.0]
[1727209076869,4.79277969,2650.0,2649.9,1.0]
[1727209077603,2.97117874,2650.0,2649.9,1.0]
[1727209077806,4.79322942,2650.0,2649.9,1.0]
[1727209078123,3.20966485,2650.0,2649.9,1.0]
[1727209078295,4.79322942,2650.0,2649.9,1.0]
[1727209078475,3.20966485,2650.0,2649.9,1.0]
[1727209078671,1.78323186,2650.0,2649.9,1.0]
[1727209078876,2.97131599,2650.0,2649.9,4.0]
[1727209079581,2.97131599,2650.0,2649.9,4.7762]
[1727209079796,1.78323186,2650.0,2649.9,4.7762]
[1727209080207,1.78323186,2650.0,2649.9,8.54992]
[1727209080516,0.79199028,2650.2,2649.9,4.31015666]
[1727209080698,0.79199028,2650.4,2650.3,6.77315]
[1727209080908,1.18808413,2650.5,2650.4,3.77301]
[1727209081196,1.18808413,2650.5,2650.4,6.89284872]
[1727209081197,2.97084261,2650.5,2650.4,6.89284872]
[1727209081567,1.18808413,2650.5,2650.4,6.89284872]
[1727209081811,2.57456806,2650.5,2650.4,6.89284872]
[1727209082022,2.97082979,2650.5,2650.4,6.89284872]
[1727209082224,2.97082979,2650.5,2650.4,8.37484559]
[1727209084134,1.78274566,2650.5,2650.4,8.37484559]
[1727209084517,2.57460422,2650.5,2650.4,8.37484559]
[1727209084716,2.97082979,2650.5,2650.4,8.37484559]
[1727209086338,2.97178851,2650.5,2650.4,8.37484559]
[1727209087456,2.57565395,2650.5,2650.4,11.37484559]
[1727209087610,0.79194957,2650.6,2650.5,6.77287]
[1727209087807,0.7134705,2650.6,2650.5,7.96416779]
[1727209088346,0.79194957,2650.7,2650.6,6.77273]
[1727209088551,0.71339459,2650.7,2650.6,9.89256872]
[1727209088749,0.71337817,2650.7,2650.6,11.37456559]
[1727209089048,0.79194957,2650.9,2650.8,6.77244]
[1727209089345,2.57530108,2650.9,2650.8,6.77244]
[1727209089541,2.57530108,2650.9,2650.8,7.17133779]
[1727209090548,1.78335151,2650.9,2650.8,7.17133779]
[1727209090845,2.57493067,2650.9,2650.8,7.17133779]
[1727209091049,2.57468453,2650.9,2650.8,7.17133779]
[1727209091205,1.78259252,2650.9,2650.8,7.17133779]
[1727209091612,2.57454209,2650.9,2650.8,7.17133779]
[1727209092349,0.71309398,2650.9,2650.8,7.17133779]
[1727209093643,0.79194957,2651.0,2650.9,6.7723]
[1727209093846,2.57523113,2651.0,2650.8,0.39889779]
[1727209094050,2.57449612,2650.9,2650.7,3.0]
[1727209094216,0.71333281,2650.8,2650.7,3.0]
[1727209094410,2.57457856,2650.8,2650.7,3.0]
[1727209094616,1.783364,2650.8,2650.4,3.11983872]
[1727209094851,2.57456856,2650.7,2650.4,3.11983872]
[1727209095054,1.783364,2650.6,2650.4,3.11983872]
[1727209095224,0.79120456,2650.6,2650.4,3.11983872]
[1727209095432,0.79120456,2650.7,2650.5,3.77287]
[1727209095753,0.79120456,2650.7,2650.6,7.68496872]
[1727209095955,0.71331949,2650.7,2650.6,7.68496872]
[1727209096359,0.79120456,2650.8,2650.7,3.77258]
[1727209096531,0.7132439,2650.8,2650.7,4.50761679]
[1727209096720,0.79120456,2650.9,2650.7,4.50761679]
[1727209096920,0.79120456,2650.9,2650.8,6.89227872]
[1727209097125,1.18808413,2651.1,2650.8,6.89227872]
[1727209097126,0.79120456,2651.1,2650.8,9.89227872]
[1727209097366,1.18808413,2651.2,2651.0,9.89199872]
[1727209097658,2.57376644,2651.1,2651.0,9.89199872]
[1727209097819,1.78281291,2651.1,2651.0,9.89199872]
[1727209098020,2.57377315,2651.1,2651.0,10.68439872]
[1727209098277,1.58356457,2651.3,2651.1,3.77194]
[1727209098278,0.79096024,2651.3,2651.1,3.77194]
[1727209098422,0.71295397,2651.2,2651.1,3.77194]
[1727209098622,0.71295397,2651.2,2651.1,6.96721102]
[1727209098859,0.71295397,2651.2,2651.1,6.89177872]
[1727209099517,0.71295397,2651.2,2651.1,6.96721116]
[1727209099717,0.71295397,2651.2,2651.1,8.02994271]
[1727209099918,0.71295397,2651.2,2651.1,7.95451027]
[1727209100341,0.71310225,2651.2,2651.1,7.95451027]
[1727209100547,0.79096024,2651.3,2651.2,3.77187]
[1727209100772,0.71305623,2651.3,2651.2,3.77187]
[1727209100923,2.57359931,2651.3,2651.2,3.77187]
[1727209101161,0.71305623,2651.3,2651.2,3.77187]
[1727209102052,1.78245734,2651.3,2651.2,3.77187]
[1727209102289,1.78233162,2651.3,2651.2,3.77187]
[1727209102510,0.71305623,2651.3,2651.2,3.77187]
[1727209102866,1.78229904,2651.3,2651.2,3.77187]
[1727209103072,0.71305623,2651.3,2651.2,3.77187]
[1727209103295,0.71305623,2651.3,2651.1,7.95451027]
[1727209104406,0.71305623,2651.3,2651.1,6.89177872]
[1727209104574,0.79096024,2651.4,2651.1,6.89177872]
[1727209104773,0.71263826,2651.3,2651.1,6.89177872]
[1727209105197,0.82919314,2651.5,2651.2,3.77187]
[1727209105378,0.71255996,2651.4,2651.3,3.11983872]
[1727209105579,1.50346231,2651.4,2651.3,3.11983872]
[1727209105872,1.50346231,2651.4,2651.0,3.0]
[1727209105873,1.50346231,2651.4,2651.1,6.89184872]
[1727209106214,2.57222748,2651.4,2651.1,6.89184872]
[1727209106507,0.71250207,2651.3,2651.1,6.89184872]
[1727209106712,0.79096024,2651.4,2651.1,6.89184872]
[1727209106915,1.50343525,2651.4,2651.1,6.89184872]
[1727209107076,0.71247501,2651.3,2651.1,6.89184872]
[1727209107277,0.79096024,2651.4,2651.1,6.89184872]
[1727209107608,1.50340406,2651.4,2651.1,3.0]
[1727209107777,1.59546024,2651.2,2650.9,3.0]
[1727209107973,1.59546024,2651.2,2650.9,6.11983872]
[1727209109205,0.7127213,2651.1,2650.9,6.11983872]
[1727209109769,0.8045,2651.2,2650.9,6.11983872]
[1727209110209,0.8045,2651.2,2650.9,9.96757645]
[1727209110414,0.79096024,2651.3,2651.1,6.11983872]
[1727209110609,0.71270525,2651.2,2651.1,6.11983872]
[1727209110913,1.99258413,2651.4,2651.1,6.11983872]
[1727209110914,0.79096024,2651.4,2651.1,9.89183872]
[1727209111071,0.71264381,2651.3,2651.1,9.89183872]
[1727209111278,0.79096024,2651.4,2651.1,6.11983872]
[1727209111494,0.71267714,2651.3,2651.1,6.11983872]
[1727209111695,1.7816639,2651.3,2651.1,6.11983872]
[1727209111910,4.56257024,2651.4,2651.1,6.11983872]
[1727209112109,0.71268544,2651.3,2651.1,6.11983872]
[1727209114454,0.8045,2651.2,2650.9,3.0]
[1727209114721,0.8045,2651.2,2651.1,3.0]
[1727209115011,0.8045,2651.2,2650.8,6.11983872]
[1727209115012,5.28908764,2651.2,2650.8,6.11983872]
[1727209115315,0.8045,2651.2,2650.8,10.34862672]
[1727209115476,0.79096024,2651.3,2651.1,3.11983872]
[1727209115678,2.57281031,2651.3,2651.1,3.11983872]
[1727209115877,1.59546024,2651.4,2651.1,3.11983872]
[1727209116114,1.59546024,2651.4,2651.1,3.19527102]
[1727209116477,1.59546024,2651.4,2651.1,3.11983872]
[1727209116478,1.78179711,2651.3,2651.1,3.11983872]
[1727209116813,1.59546024,2651.4,2651.1,3.11983872]
[1727209117019,1.78188067,2651.3,2651.1,3.11983872]
[1727209117233,1.59546024,2651.4,2651.1,3.11983872]
[1727209117387,0.71276195,2651.3,2651.1,3.11983872]
[1727209119016,5.36705024,2651.4,2651.1,3.11983872]
[1727209119316,0.71279628,2651.3,2651.1,8.11560922]
[1727209119521,1.22631703,2651.5,2651.1,8.11560922]
[1727209119522,0.82919314,2651.5,2651.4,3.77159]
[1727209119689,0.75100963,2651.5,2651.4,6.89142872]
[1727209120022,0.75100963,2651.5,2651.4,7.62399651]
[1727209120678,0.0382329,2651.5,2651.4,11.44309651]
[1727209128103,0.0382329,2651.5,2651.4,6.85240651]
[1727209128299,0.0382329,2651.5,2651.4,6.11983872]
[1727209128513,0.75201064,2651.5,2651.4,6.11983872]
[1727209130209,0.75201064,2651.5,2651.4,9.89142872]
[1727209130398,0.0382329,2651.5,2651.4,9.89142872]
[1727209130601,0.75255014,2651.5,2651.4,9.89142872]
[1727209130801,0.7525716,2651.5,2651.4,9.89142872]
[1727209131108,0.0382329,2651.5,2651.4,9.89142872]
[1727209131933,0.0382329,2651.5,2651.4,11.33965459]
[1727209132416,0.0382329,2651.5,2651.4,12.10335459]
[1727209134618,0.75268161,2651.5,2651.4,12.10335459]
[1727209135054,0.0382329,2651.5,2651.4,12.10335459]
[1727209136304,0.0382329,2651.5,2651.4,11.33965459]
[1727209136305,0.75267772,2651.5,2651.4,11.33965459]
[1727209136646,1.82434496,2651.5,2651.4,6.11983872]
[1727209136805,2.61531391,2651.5,2651.4,6.11983872]
[1727209137636,0.0382329,2651.5,2651.4,9.89142872]
[1727209137943,0.75267393,2651.5,2651.4,9.89142872]
[1727209138149,0.0382329,2651.5,2651.4,11.33410759]
[1727209140745,0.75294349,2651.5,2651.4,11.33410759]
[1727209141107,0.0382329,2651.5,2651.4,11.33410759]
[1727209141708,0.75309549,2651.5,2651.4,11.33410759]
[1727209142311,2.61648771,2651.5,2651.4,11.33410759]
[1727209142617,2.61648771,2651.5,2651.4,7.56251759]
[1727209144124,0.75309549,2651.5,2651.4,11.33410759]
[1727209144452,2.62191833,2651.5,2651.0,3.0]
[1727209144762,0.79131282,2651.3,2651.2,6.77184]
[1727209145061,2.57869825,2651.3,2651.2,8.13375811]
[1727209145223,2.57869825,2651.3,2651.2,4.36191811]
[1727209145430,2.57869825,2651.3,2650.7,4.53623]
[1727209145431,2.57869825,2651.3,2651.0,3.0]
[1727209145636,0.79130684,2651.3,2651.2,9.89170872]
[1727209145842,2.57906539,2651.3,2651.2,9.89170872]
[1727209146016,2.57906539,2651.3,2651.2,6.11983872]
[1727209146218,2.57906539,2651.3,2650.9,9.89212872]
[1727209146219,5.55948855,2651.3,2650.9,9.89212872]
[1727209146418,1.60765016,2651.1,2650.9,6.11983872]
[1727209146649,2.57910871,2651.0,2650.9,6.11983872]
[1727209146859,2.57910871,2651.0,2650.9,3.0]
[1727209148057,2.57910871,2651.0,2650.9,6.11983872]
[1727209148253,2.57910871,2651.0,2650.9,7.48629959]
[1727209148621,0.71510342,2651.0,2650.9,7.48629959]
[1727209148943,1.60765016,2651.1,2650.9,7.48629959]
[1727209149459,1.60765016,2651.1,2651.0,6.77216]
[1727209149658,1.62068137,2651.5,2651.2,3.77174]
[1727209149951,1.18683635,2651.4,2651.2,3.77174]
[1727209150553,2.97377338,2651.4,2651.2,3.77174]
[1727209150758,2.57814587,2651.3,2651.2,4.28617379]
[1727209151295,0.71477481,2651.3,2651.2,4.28617379]
[1727209151434,0.82944174,2651.5,2651.4,3.77159]
[1727209151629,1.82491334,2651.5,2651.4,7.88490921]
[1727209151833,0.75291094,2651.5,2651.4,11.00474793]
[1727209152036,2.6161624,2651.5,2651.4,12.29034793]
[1727209152354,0.0382329,2651.5,2651.4,12.29034793]
[1727209156171,0.0382329,2651.5,2651.4,12.79034793]
[1727209160493,0.0382329,2651.5,2651.4,13.29034793]
[1727209164496,0.0382329,2651.5,2651.4,13.79034793]
[1727209168593,0.0382329,2651.5,2651.4,14.29034793]
[1727209172516,0.0382329,2651.5,2651.4,12.61006748]
[1727209175271,0.0382329,2651.5,2651.4,13.16006748]
[1727209175493,0.79120884,2651.9,2651.4,12.37446748]
[1727209175695,0.79120884,2652.2,2652.0,3.77073]
[1727209175873,0.79120884,2652.2,2652.1,1.51496176]
[1727209176189,2.56728822,2652.2,2652.1,5.28555176]
[1727209176508,2.56728822,2652.2,2652.1,6.19117994]
[1727209176669,2.56728822,2652.2,2652.1,6.11577645]
[1727209177065,0.71043175,2652.2,2652.1,9.11577645]
[1727209177309,2.56708595,2652.2,2652.1,9.11577645]
[1727209177613,1.77587711,2652.2,2652.1,9.11577645]
[1727209177935,1.77572779,2652.2,2652.1,9.11577645]
[1727209178247,1.18683635,2652.4,2652.2,3.97526648]
[1727209178380,0.8163,2652.5,2652.4,6.77017]
[1727209178570,0.8163,2652.5,2652.4,9.886572]
[1727209178793,1.18683635,2653.0,2652.4,6.116402]
[1727209179109,1.04012466,2652.9,2652.8,6.116402]
[1727209179609,1.82552466,2652.9,2652.8,6.116402]
[1727209179934,1.82502669,2652.9,2652.8,6.116402]
[1727209180067,1.82502552,2652.9,2652.8,6.116402]
[1727209180263,1.8249883,2652.9,2652.8,6.116402]
[1727209180672,0.7854,2652.9,2652.8,6.116402]
[1727209181872,0.7854,2652.9,2652.8,9.886002]
[1727209182613,0.8236329,2653.1,2652.8,9.886002]
[1727209182973,0.8236329,2653.1,2653.0,3.116402]
[1727209183273,0.8236329,2653.1,2652.8,8.03885446]
[1727209183274,0.8236329,2653.1,2652.8,14.92477646]
[1727209183882,0.8236329,2653.1,2652.8,6.116402]
[1727209184085,0.8236329,2653.1,2652.8,3.0]
[1727209184485,0.7854,2652.9,2652.5,3.0]
[1727209184902,0.7854,2652.9,2652.2,6.886772]
[1727209185078,1.18683635,2653.0,2652.2,6.886772]
[1727209185079,0.7854,2652.7,2652.2,6.886772]
[1727209185282,0.7854,2652.7,2652.2,8.0337232]
[1727209185517,0.7854,2652.7,2652.2,11.8040832]
[1727209185820,0.7854,2652.7,2652.2,8.0337132]
[1727209186021,4.55516,2652.7,2652.2,8.0337132]
[1727209186229,0.7854,2652.5,2651.9,7.41]
[1727209186394,3.7704,2652.3,2651.6,3.928502]
[1727209186598,4.55586,2652.2,2651.7,3.77114]
[1727209186899,4.55586,2652.2,2651.6,6.887582]
[1727209187105,4.55586,2652.2,2651.6,10.658802]
[1727209187429,4.55586,2652.2,2651.6,6.887582]
[1727209187630,3.77063,2652.1,2651.6,3.77118]
[1727209187796,0.7854,2652.0,2651.6,3.77118]
[1727209188119,0.7854,2652.0,2651.4,16.797962]
[1727209188424,0.7854,2652.0,2651.5,3.77144]
[1727209188653,0.7854,2652.0,2651.4,2.5]
[1727209188797,3.77111,2651.8,2651.4,2.5]
[1727209189228,0.7854,2651.7,2651.4,2.5]
[1727209189838,4.55659,2651.7,2651.5,3.0]
[1727209190015,0.7854,2651.7,2651.4,2.5]
[1727209190203,4.55665,2651.7,2651.4,2.5]
[1727209190402,5.46832963,2651.7,2651.4,2.5]
[1727209191437,4.55665,2651.7,2651.4,2.5]
[1727209192426,0.7854,2651.7,2651.4,2.5]
[1727209192754,4.55664,2651.7,2651.4,5.616402]
[1727209194201,3.77139,2651.6,2651.4,5.616402]
[1727209194402,3.77139,2651.6,2651.4,2.5]
[1727209194600,1.57443633,2651.7,2651.4,2.5]
[1727209194832,5.34567633,2651.7,2651.4,2.5]
[1727209195205,1.57443633,2651.7,2651.4,2.5]
[1727209195511,3.77133,2651.6,2651.4,2.5]
[1727209195729,7.54272,2651.6,2651.4,2.5]
[1727209196212,8.33175633,2651.6,2651.4,2.5]
[1727209196413,3.77133,2651.6,2651.4,2.5]
[1727209196611,5.62359657,2651.5,2651.4,2.5]
[1727209196831,6.4126329,2651.5,2651.4,2.5]
[1727209197006,6.81043292,2651.5,2651.4,2.5]
[1727209197717,5.62359657,2651.5,2651.4,2.5]
[1727209198416,7.50415244,2651.5,2651.4,2.5]
[1727209198623,8.45784835,2651.5,2651.4,2.5]
[1727209198849,8.85520704,2651.5,2651.4,2.5]
[1727209199024,10.63812466,2651.5,2651.4,2.5]
[1727209199226,11.02971238,2651.5,2651.4,2.5]
[1727209199530,9.05567619,2651.5,2651.4,2.5]
[1727209200346,11.02900547,2651.5,2651.4,2.5]
[1727209200547,11.02880611,2651.5,2651.4,2.5]
[1727209201733,8.0145533,2651.5,2651.4,2.5]
[1727209201937,11.02683521,2651.5,2651.4,2.5]
[1727209203659,10.6313807,2651.5,2651.4,2.5]
[1727209206038,9.05432133,2651.5,2651.4,2.5]
[1727209206355,7.32137462,2651.5,2651.4,2.5]
[1727209206562,8.84719052,2651.5,2651.4,2.5]
[1727209206962,8.33578469,2651.5,2651.4,2.5]
[1727209208046,5.80256732,2651.5,2651.4,2.5]
[1727209208248,6.59037774,2651.5,2651.4,2.5]
[1727209210083,6.98466557,2651.5,2651.4,2.5]
[1727209211161,6.98322597,2651.5,2651.4,2.5]
[1727209211350,5.34838937,2651.6,2651.4,2.5]
[1727209211351,4.55876269,2651.6,2651.4,2.5]
[1727209211553,4.55860269,2651.7,2651.5,0.25]
[1727209211787,3.77117,2651.7,2651.5,0.25]
[1727209212452,3.7713,2651.6,2651.5,0.25]
[1727209212646,3.7713,2651.6,2651.4,2.5]
[1727209213045,3.77145,2651.5,2651.4,2.5]
[1727209215419,4.55933,2651.6,2651.4,2.5]
[1727209215716,3.77133,2651.6,2651.4,2.5]
[1727209215920,3.77117,2651.7,2651.4,2.5]
[1727209216082,7.54246,2651.7,2651.4,2.5]
[1727209216587,3.77117,2651.7,2651.4,2.5]
[1727209216981,7.54244,2651.7,2651.4,2.5]
[1727209217181,3.77131,2651.6,2651.4,2.5]
[1727209217424,7.54241,2651.7,2651.4,2.5]
[1727209217594,3.77131,2651.6,2651.4,2.5]
[1727209218683,3.77131,2651.6,2651.2,3.116402]
[1727209218878,3.77131,2651.6,2651.4,0.5]
[1727209221186,3.77117,2651.7,2651.4,0.5]
[1727209221488,1.18209825,2652.1,2651.5,3.116402]
[1727209221489,3.77076,2652.0,2651.5,3.116402]
[1727209222125,3.77076,2652.0,2651.5,6.887842]
[1727209222324,3.7706,2652.1,2651.6,4.50976846]
[1727209222569,3.77077,2652.0,2651.6,0.73852846]
[1727209223577,0.78743269,2652.3,2651.7,7.684762]
[1727209223743,4.55754269,2652.5,2652.0,3.116402]
[1727209223925,3.77011,2652.5,2652.0,3.116402]
[1727209224267,3.77011,2652.5,2652.1,0.7973]
[1727209224643,4.55754269,2652.5,2652.1,0.7973]